[Event "Titled Tuesday Blitz February 21 Early 2023"]
[White "Grigoriants, Sergey"]
[Black "Souleidis, Georgios"]
[WhiteFideId "4130804"]
[BlackFideId "4206827"]
[WhiteElo "2562"]
[BlackElo "2419"]
[Result "1/2-1/2"]
[Round "09"]
[TimeControl "180+2"]
[Date "2023.02.21"]
[WhiteClock "0:00:08"]
[BlackClock "0:00:12"]

1. d4 {[%clk 0:02:56]}  Nf6 {[%clk 0:02:59]} 2. c4 {[%clk 0:02:56]}  g6 {[%clk 0:03:00]} 3. f3 {[%clk 0:02:55]}  Bg7 {[%clk 0:03:00]} 4. e4 {[%clk 0:02:56]}  d6 {[%clk 0:03:00]} 5. Nc3 {[%clk 0:02:56]}  O-O {[%clk 0:03:01]} 6. Nge2 {[%clk 0:02:57]}  c5 {[%clk 0:03:01]} 7. d5 {[%clk 0:02:55]}  e6 {[%clk 0:03:01]} 8. Ng3 {[%clk 0:02:55]}  exd5 {[%clk 0:03:01]} 9. cxd5 {[%clk 0:02:55]}  a6 {[%clk 0:03:02]} 10. a4 {[%clk 0:02:55]}  h5 {[%clk 0:03:02]} 11. Be2 {[%clk 0:02:52]}  h4 {[%clk 0:03:01]} 12. Nf1 {[%clk 0:02:52]}  Nh7 {[%clk 0:02:45]} 13. g4 {[%clk 0:02:28]}  Nd7 {[%clk 0:02:32]} 14. Be3 {[%clk 0:02:19]}  Qe7 {[%clk 0:02:28]} 15. f4 {[%clk 0:02:12]}  g5 {[%clk 0:02:05]} 16. Qd2 {[%clk 0:02:01]}  gxf4 {[%clk 0:01:59]} 17. Bxf4 {[%clk 0:02:02]}  Ne5 {[%clk 0:01:40]} 18. Ne3 {[%clk 0:01:58]}  Ng6 {[%clk 0:01:36]} 19. Nf5 {[%clk 0:01:48]}  Bxf5 {[%clk 0:01:36]} 20. gxf5 {[%clk 0:01:49]}  Nxf4 {[%clk 0:01:37]} 21. Qxf4 {[%clk 0:01:49]}  Rae8 {[%clk 0:01:31]} 22. Bd3 {[%clk 0:01:40]}  Kh8 {[%clk 0:01:23]} 23. Kd2 {[%clk 0:01:30]}  Qf6 {[%clk 0:01:23]} 24. Kc2 {[%clk 0:01:29]}  Bh6 {[%clk 0:01:23]} 25. Qf2 {[%clk 0:01:26]}  Rg8 {[%clk 0:01:20]} 26. Rhg1 {[%clk 0:01:25]}  Rxg1 {[%clk 0:00:54]} 27. Rxg1 {[%clk 0:01:24]}  Rg8 {[%clk 0:00:53]} 28. Rxg8+ {[%clk 0:01:12]}  Kxg8 {[%clk 0:00:54]} 29. e5 {[%clk 0:01:13]}  Qxe5 {[%clk 0:00:51]} 30. Qxh4 {[%clk 0:01:13]}  Bg5 {[%clk 0:00:47]} 31. Qh5 {[%clk 0:01:08]}  Bf6 {[%clk 0:00:27]} 32. a5 {[%clk 0:01:02]}  Ng5 {[%clk 0:00:23]} 33. h4 {[%clk 0:01:00]}  Nh7 {[%clk 0:00:18]} 34. Qg4+ {[%clk 0:00:47]}  Kf8 {[%clk 0:00:18]} 35. Bc4 {[%clk 0:00:43]}  Qh2+ {[%clk 0:00:17]} 36. Kb3 {[%clk 0:00:41]}  Qxh4 {[%clk 0:00:16]} 37. Qxh4 {[%clk 0:00:30]}  Bxh4 {[%clk 0:00:16]} 38. Ne4 {[%clk 0:00:31]}  Be7 {[%clk 0:00:17]} 39. Ka4 {[%clk 0:00:30]}  Nf6 {[%clk 0:00:15]} 40. Nxf6 {[%clk 0:00:29]}  Bxf6 {[%clk 0:00:16]} 41. b4 {[%clk 0:00:30]}  cxb4 {[%clk 0:00:17]} 42. Kxb4 {[%clk 0:00:30]}  Ke7 {[%clk 0:00:16]} 43. Bb3 {[%clk 0:00:25]}  Bh4 {[%clk 0:00:16]} 44. Bd1 {[%clk 0:00:22]}  Be1+ {[%clk 0:00:16]} 45. Ka4 {[%clk 0:00:23]}  Kf6 {[%clk 0:00:16]} 46. Bg4 {[%clk 0:00:21]}  Ke5 {[%clk 0:00:16]} 47. f6 {[%clk 0:00:20]}  Bf2 {[%clk 0:00:13]} 48. Bc8 {[%clk 0:00:19]}  b6 {[%clk 0:00:13]} 49. axb6 {[%clk 0:00:17]}  Bxb6 {[%clk 0:00:14]} 50. Bxa6 {[%clk 0:00:17]}  Kxd5 {[%clk 0:00:14]} 51. Kb5 {[%clk 0:00:15]}  Bd8 {[%clk 0:00:14]} 52. Bb7+ {[%clk 0:00:15]}  Ke5 {[%clk 0:00:14]} 53. Kc4 {[%clk 0:00:15]}  Kxf6 {[%clk 0:00:12]} 54. Kd5 {[%clk 0:00:15]}  Be7 {[%clk 0:00:12]} 55. Bc8 {[%clk 0:00:15]}  Kg5 {[%clk 0:00:12]} 56. Ke4 {[%clk 0:00:15]}  Bf6 {[%clk 0:00:12]} 57. Bd7 {[%clk 0:00:15]}  Be5 {[%clk 0:00:13]} 58. Bc8 {[%clk 0:00:15]}  Kf6 {[%clk 0:00:13]} 59. Kd5 {[%clk 0:00:14]}  Ke7 {[%clk 0:00:13]} 60. Bh3 {[%clk 0:00:14]}  Bh2 {[%clk 0:00:12]} 61. Bg4 {[%clk 0:00:13]}  Kf6 {[%clk 0:00:13]} 62. Ke4 {[%clk 0:00:12]}  Kg5 {[%clk 0:00:12]} 63. Bc8 {[%clk 0:00:11]}  Bg3 {[%clk 0:00:10]} 64. Bd7 {[%clk 0:00:12]}  Be5 {[%clk 0:00:10]} 65. Bc8 {[%clk 0:00:12]}  Kh4 {[%clk 0:00:10]} 66. Kf3 {[%clk 0:00:11]}  f6 {[%clk 0:00:09]} 67. Be6 {[%clk 0:00:10]}  Kg5 {[%clk 0:00:10]} 68. Ke4 {[%clk 0:00:10]}  Kg6 {[%clk 0:00:10]} 69. Bf5+ {[%clk 0:00:08]}  Kg5 {[%clk 0:00:11]} 70. Be6 {[%clk 0:00:08]}  Kh4 {[%clk 0:00:12]} 71. Kf3 {[%clk 0:00:08]}  Kg5 {[%clk 0:00:12]} 72. Ke4 {[%clk 0:00:08]} 1/2-1/2


[Site "https://www.chess.com"]

[Event "Titled Tuesday Blitz February 21 Early 2023"]
[White "Urazayev, Arystanbek"]
[Black "Maksimenko, Viktor"]
[WhiteFideId "13709810"]
[BlackFideId "13710478"]
[WhiteElo "2460"]
[BlackElo "2196"]
[Result "1-0"]
[Round "09"]
[TimeControl "180+2"]
[Date "2023.02.21"]
[WhiteClock "0:00:15"]
[BlackClock "0:00:09"]

1. e4 {[%clk 0:03:00]}  e5 {[%clk 0:03:00]} 2. Nf3 {[%clk 0:03:01]}  Nc6 {[%clk 0:03:01]} 3. d4 {[%clk 0:03:01]}  exd4 {[%clk 0:03:01]} 4. Bc4 {[%clk 0:03:02]}  Nf6 {[%clk 0:03:01]} 5. e5 {[%clk 0:03:01]}  d5 {[%clk 0:03:01]} 6. Bb5 {[%clk 0:03:02]}  Ne4 {[%clk 0:03:02]} 7. Nxd4 {[%clk 0:03:02]}  Bd7 {[%clk 0:03:02]} 8. Bxc6 {[%clk 0:03:02]}  bxc6 {[%clk 0:03:03]} 9. O-O {[%clk 0:03:02]}  Bc5 {[%clk 0:03:04]} 10. Be3 {[%clk 0:03:00]}  Qb8 {[%clk 0:02:58]} 11. Nc3 {[%clk 0:02:57]}  Qxb2 {[%clk 0:02:46]} 12. Nxe4 {[%clk 0:02:53]}  dxe4 {[%clk 0:02:47]} 13. Qd2 {[%clk 0:02:54]}  Qb4 {[%clk 0:02:45]} 14. c3 {[%clk 0:02:41]}  Qc4 {[%clk 0:02:44]} 15. Rfd1 {[%clk 0:02:39]}  Bxd4 {[%clk 0:02:32]} 16. Bxd4 {[%clk 0:02:35]}  O-O {[%clk 0:02:26]} 17. Rab1 {[%clk 0:02:23]}  c5 {[%clk 0:02:19]} 18. Be3 {[%clk 0:02:16]}  Ba4 {[%clk 0:02:10]} 19. Qd5 {[%clk 0:02:08]}  Qxd5 {[%clk 0:01:52]} 20. Rxd5 {[%clk 0:02:08]}  Rab8 {[%clk 0:01:53]} 21. Rxb8 {[%clk 0:02:01]}  Rxb8 {[%clk 0:01:54]} 22. h4 {[%clk 0:02:02]}  a6 {[%clk 0:01:32]} 23. Rxc5 {[%clk 0:02:01]}  c6 {[%clk 0:01:32]} 24. c4 {[%clk 0:01:55]}  Ra8 {[%clk 0:01:23]} 25. Ra5 {[%clk 0:01:47]}  Bc2 {[%clk 0:01:23]} 26. Bb6 {[%clk 0:01:48]}  Kf8 {[%clk 0:01:20]} 27. Kh2 {[%clk 0:01:33]}  Ke8 {[%clk 0:01:18]} 28. Kg3 {[%clk 0:01:31]}  Bd3 {[%clk 0:01:15]} 29. c5 {[%clk 0:01:19]}  Kd7 {[%clk 0:01:08]} 30. Ra4 {[%clk 0:01:16]}  Ke6 {[%clk 0:00:55]} 31. Rd4 {[%clk 0:01:16]}  Kxe5 {[%clk 0:00:54]} 32. Rd7 {[%clk 0:01:16]}  Bc4 {[%clk 0:00:53]} 33. a4 {[%clk 0:01:16]}  Bd5 {[%clk 0:00:53]} 34. a5 {[%clk 0:01:08]}  h6 {[%clk 0:00:52]} 35. h5 {[%clk 0:01:08]}  Rg8 {[%clk 0:00:50]} 36. Ra7 {[%clk 0:00:57]}  Bc4 {[%clk 0:00:51]} 37. Re7+ {[%clk 0:00:56]}  Kd4 {[%clk 0:00:51]} 38. Kf4 {[%clk 0:00:55]}  Bd5 {[%clk 0:00:43]} 39. Ra7 {[%clk 0:00:47]}  g5+ {[%clk 0:00:32]} 40. Kf5 {[%clk 0:00:46]}  Bc4 {[%clk 0:00:29]} 41. Rd7+ {[%clk 0:00:45]}  Bd5 {[%clk 0:00:30]} 42. Rd6 {[%clk 0:00:45]}  Rh8 {[%clk 0:00:26]} 43. Kf6 {[%clk 0:00:46]}  e3 {[%clk 0:00:24]} 44. fxe3+ {[%clk 0:00:43]}  Kxe3 {[%clk 0:00:25]} 45. Kg7 {[%clk 0:00:44]}  Re8 {[%clk 0:00:25]} 46. Kxh6 {[%clk 0:00:39]}  g4 {[%clk 0:00:26]} 47. g3 {[%clk 0:00:36]}  Kf3 {[%clk 0:00:24]} 48. Bc7 {[%clk 0:00:36]}  Re7 {[%clk 0:00:20]} 49. Bd8 {[%clk 0:00:37]}  Re8 {[%clk 0:00:19]} 50. Bh4 {[%clk 0:00:36]}  Ke4 {[%clk 0:00:19]} 51. Kg7 {[%clk 0:00:36]}  Kd4 {[%clk 0:00:19]} 52. h6 {[%clk 0:00:35]}  Kxc5 {[%clk 0:00:20]} 53. Rd7 {[%clk 0:00:30]}  Be4 {[%clk 0:00:20]} 54. Rxf7 {[%clk 0:00:27]}  Kb4 {[%clk 0:00:19]} 55. Rf4 {[%clk 0:00:22]}  Kxa5 {[%clk 0:00:16]} 56. Kf7 {[%clk 0:00:20]}  Rh8 {[%clk 0:00:12]} 57. Rxe4 {[%clk 0:00:18]}  Rxh6 {[%clk 0:00:13]} 58. Rxg4 {[%clk 0:00:18]}  c5 {[%clk 0:00:13]} 59. Be7 {[%clk 0:00:16]}  Rc6 {[%clk 0:00:13]} 60. Rf4 {[%clk 0:00:15]}  c4 {[%clk 0:00:12]} 61. g4 {[%clk 0:00:16]}  c3 {[%clk 0:00:13]} 62. Ba3 {[%clk 0:00:12]}  c2 {[%clk 0:00:13]} 63. Bc1 {[%clk 0:00:12]}  Kb5 {[%clk 0:00:08]} 64. g5 {[%clk 0:00:12]}  Rd6 {[%clk 0:00:09]} 65. Rf2 {[%clk 0:00:12]}  Rc6 {[%clk 0:00:07]} 66. g6 {[%clk 0:00:12]}  Kc4 {[%clk 0:00:08]} 67. g7 {[%clk 0:00:12]}  Rc7+ {[%clk 0:00:07]} 68. Kg6 {[%clk 0:00:13]}  Rxg7+ {[%clk 0:00:08]} 69. Kxg7 {[%clk 0:00:14]}  Kb3 {[%clk 0:00:08]} 70. Rf3+ {[%clk 0:00:14]}  Ka2 {[%clk 0:00:08]} 71. Ra3+ {[%clk 0:00:14]}  Kb1 {[%clk 0:00:09]} 72. Bh6 {[%clk 0:00:15]} 1-0


[Site "https://www.chess.com"]

[Event "Titled Tuesday Blitz February 21 Early 2023"]
[White "Pakleza, Zbigniew"]
[Black "Vovk, Orest"]
[WhiteFideId "1119290"]
[BlackFideId "14113490"]
[WhiteElo "2494"]
[BlackElo "2315"]
[Result "0-1"]
[Round "09"]
[TimeControl "180+2"]
[Date "2023.02.21"]
[WhiteClock "0:00:04"]
[BlackClock "0:00:07"]

1. d4 {[%clk 0:03:00]}  h6 {[%clk 0:02:57]} 2. e4 {[%clk 0:02:57]}  g5 {[%clk 0:02:56]} 3. h4 {[%clk 0:02:44]}  g4 {[%clk 0:02:56]} 4. Qxg4 {[%clk 0:02:30]}  d5 {[%clk 0:02:56]} 5. Qe2 {[%clk 0:02:30]}  dxe4 {[%clk 0:02:56]} 6. Qxe4 {[%clk 0:02:31]}  Nf6 {[%clk 0:02:56]} 7. Qd3 {[%clk 0:02:22]}  Nc6 {[%clk 0:02:56]} 8. Nf3 {[%clk 0:02:18]}  Bg4 {[%clk 0:02:54]} 9. Be3 {[%clk 0:02:12]}  Qd5 {[%clk 0:02:51]} 10. Nbd2 {[%clk 0:02:09]}  O-O-O {[%clk 0:02:43]} 11. c4 {[%clk 0:01:59]}  Qh5 {[%clk 0:02:19]} 12. Qb3 {[%clk 0:01:38]}  e5 {[%clk 0:02:05]} 13. d5 {[%clk 0:01:16]}  Nd4 {[%clk 0:02:05]} 14. Bxd4 {[%clk 0:00:44]}  exd4 {[%clk 0:02:05]} 15. O-O-O {[%clk 0:00:45]}  Bd6 {[%clk 0:01:39]} 16. Bd3 {[%clk 0:00:34]}  Bf4 {[%clk 0:01:29]} 17. Kb1 {[%clk 0:00:35]}  Bxd2 {[%clk 0:01:19]} 18. Rxd2 {[%clk 0:00:36]}  Bxf3 {[%clk 0:01:19]} 19. gxf3 {[%clk 0:00:37]}  Qxf3 {[%clk 0:01:18]} 20. Qd1 {[%clk 0:00:27]}  Qf4 {[%clk 0:00:53]} 21. Bc2 {[%clk 0:00:19]}  c5 {[%clk 0:00:52]} 22. dxc6 {[%clk 0:00:19]}  bxc6 {[%clk 0:00:52]} 23. Rh3 {[%clk 0:00:15]}  Ne4 {[%clk 0:00:41]} 24. Bxe4 {[%clk 0:00:10]}  Qxe4+ {[%clk 0:00:42]} 25. Ka1 {[%clk 0:00:09]}  Rhe8 {[%clk 0:00:40]} 26. Rhd3 {[%clk 0:00:05]}  c5 {[%clk 0:00:37]} 27. Qa4 {[%clk 0:00:04]}  Kb8 {[%clk 0:00:28]} 28. a3 {[%clk 0:00:02]}  Re6 {[%clk 0:00:27]} 29. Rb3+ {[%clk 0:00:02]}  Rb6 {[%clk 0:00:27]} 30. Rdd3 {[%clk 0:00:03]}  Rd6 {[%clk 0:00:23]} 31. Qa5 {[%clk 0:00:02]}  Qc6 {[%clk 0:00:18]} 32. Ka2 {[%clk 0:00:01]}  Kb7 {[%clk 0:00:18]} 33. h5 {[%clk 0:00:01]}  f5 {[%clk 0:00:18]} 34. Rb5 {[%clk 0:00:01]}  Rxb5 {[%clk 0:00:12]} 35. cxb5 {[%clk 0:00:02]}  Qd5+ {[%clk 0:00:10]} 36. Ka1 {[%clk 0:00:02]}  c4 {[%clk 0:00:10]} 37. Rd1 {[%clk 0:00:02]}  d3 {[%clk 0:00:08]} 38. Qc3 {[%clk 0:00:02]}  Qd4 {[%clk 0:00:08]} 39. Qd2 {[%clk 0:00:02]}  Re6 {[%clk 0:00:07]} 40. Rc1 {[%clk 0:00:02]}  Re2 {[%clk 0:00:07]} 41. Qc3 {[%clk 0:00:02]}  Qxc3 {[%clk 0:00:07]} 42. bxc3 {[%clk 0:00:03]}  d2 {[%clk 0:00:07]} 43. Rd1 {[%clk 0:00:03]}  Re1 {[%clk 0:00:07]} 44. Kb2 {[%clk 0:00:04]}  Rxd1 {[%clk 0:00:07]} 0-1


[Site "https://www.chess.com"]

[Event "Titled Tuesday Blitz February 21 Early 2023"]
[White "Maltsevskaya, Aleksandra"]
[Black "Fier, Alexandr"]
[WhiteFideId "24174041"]
[BlackFideId "2107139"]
[WhiteElo "2390"]
[BlackElo "2589"]
[Result "0-1"]
[Round "09"]
[TimeControl "180+2"]
[Date "2023.02.21"]
[WhiteClock "0:00:05"]
[BlackClock "0:01:28"]

1. e4 {[%clk 0:02:49]}  Nf6 {[%clk 0:02:55]} 2. e5 {[%clk 0:02:48]}  Nd5 {[%clk 0:02:56]} 3. c4 {[%clk 0:02:49]}  Nb6 {[%clk 0:02:56]} 4. d4 {[%clk 0:02:50]}  d6 {[%clk 0:02:56]} 5. f4 {[%clk 0:02:50]}  dxe5 {[%clk 0:02:52]} 6. fxe5 {[%clk 0:02:51]}  Nc6 {[%clk 0:02:52]} 7. Nf3 {[%clk 0:02:51]}  Bg4 {[%clk 0:02:47]} 8. Be3 {[%clk 0:02:50]}  e6 {[%clk 0:02:46]} 9. Nc3 {[%clk 0:02:42]}  Bxf3 {[%clk 0:02:46]} 10. gxf3 {[%clk 0:02:36]}  Qh4+ {[%clk 0:02:46]} 11. Bf2 {[%clk 0:02:32]}  Qf4 {[%clk 0:02:47]} 12. c5 {[%clk 0:01:36]}  Nd7 {[%clk 0:02:34]} 13. Bb5 {[%clk 0:01:28]}  Be7 {[%clk 0:02:25]} 14. Qd2 {[%clk 0:01:20]}  Qxf3 {[%clk 0:02:24]} 15. Rg1 {[%clk 0:01:17]}  O-O-O {[%clk 0:02:19]} 16. Rg3 {[%clk 0:01:15]}  Qh1+ {[%clk 0:02:07]} 17. Rg1 {[%clk 0:01:16]}  Qxh2 {[%clk 0:02:06]} 18. O-O-O {[%clk 0:01:14]}  Ndxe5 {[%clk 0:02:05]} 19. Rxg7 {[%clk 0:01:01]}  Nf3 {[%clk 0:01:57]} 20. Qe3 {[%clk 0:00:28]}  Nfxd4 {[%clk 0:01:43]} 21. Bxc6 {[%clk 0:00:20]}  Nxc6 {[%clk 0:01:43]} 22. Rxf7 {[%clk 0:00:09]}  Rxd1+ {[%clk 0:01:38]} 23. Nxd1 {[%clk 0:00:10]}  e5 {[%clk 0:01:28]} 24. Bg3 {[%clk 0:00:07]}  Qh1 {[%clk 0:01:29]} 25. Bxe5 {[%clk 0:00:07]}  Rd8 {[%clk 0:01:29]} 26. Qf3 {[%clk 0:00:05]}  Qxf3 {[%clk 0:01:28]} 0-1


[Site "https://www.chess.com"]

[Event "Titled Tuesday Blitz February 21 Early 2023"]
[White "Potapova, Margarita"]
[Black "Dehtiarov, Roman"]
[WhiteFideId "14126869"]
[BlackFideId "14186640"]
[WhiteElo "2104"]
[BlackElo "2289"]
[Result "1-0"]
[Round "09"]
[TimeControl "180+2"]
[Date "2023.02.21"]
[WhiteClock "0:01:06"]
[BlackClock "0:00:03"]

1. d4 {[%clk 0:02:58]}  Nf6 {[%clk 0:02:54]} 2. c4 {[%clk 0:02:59]}  e6 {[%clk 0:02:54]} 3. Nf3 {[%clk 0:02:58]}  b6 {[%clk 0:02:53]} 4. a3 {[%clk 0:02:56]}  Ba6 {[%clk 0:02:52]} 5. Qc2 {[%clk 0:02:55]}  c5 {[%clk 0:02:51]} 6. d5 {[%clk 0:02:52]}  Bb7 {[%clk 0:02:42]} 7. Nc3 {[%clk 0:02:49]}  d6 {[%clk 0:02:40]} 8. e4 {[%clk 0:02:48]}  e5 {[%clk 0:02:40]} 9. Be2 {[%clk 0:02:45]}  Be7 {[%clk 0:02:40]} 10. O-O {[%clk 0:02:45]}  O-O {[%clk 0:02:41]} 11. Ne1 {[%clk 0:02:46]}  Nfd7 {[%clk 0:02:38]} 12. Nd3 {[%clk 0:02:46]}  Na6 {[%clk 0:02:33]} 13. b4 {[%clk 0:02:44]}  Nc7 {[%clk 0:02:31]} 14. Be3 {[%clk 0:02:41]}  g6 {[%clk 0:02:27]} 15. b5 {[%clk 0:02:40]}  f5 {[%clk 0:02:23]} 16. f4 {[%clk 0:02:40]}  exf4 {[%clk 0:02:15]} 17. Bxf4 {[%clk 0:02:40]}  Bf6 {[%clk 0:02:15]} 18. Bxd6 {[%clk 0:02:39]}  Bd4+ {[%clk 0:01:56]} 19. Kh1 {[%clk 0:02:39]}  fxe4 {[%clk 0:01:57]} 20. Nxe4 {[%clk 0:02:35]}  Re8 {[%clk 0:01:41]} 21. Nc3 {[%clk 0:01:54]}  Nf6 {[%clk 0:01:36]} 22. Bg3 {[%clk 0:01:52]}  Qd7 {[%clk 0:01:13]} 23. Rae1 {[%clk 0:01:41]}  Re3 {[%clk 0:00:51]} 24. Bf2 {[%clk 0:01:35]}  Bxc3 {[%clk 0:00:19]} 25. Bxe3 {[%clk 0:01:35]}  Bxe1 {[%clk 0:00:19]} 26. Nxe1 {[%clk 0:01:35]}  Re8 {[%clk 0:00:17]} 27. Bh6 {[%clk 0:01:28]}  Ne4 {[%clk 0:00:12]} 28. Qxe4 {[%clk 0:01:24]}  a6 {[%clk 0:00:06]} 29. a4 {[%clk 0:01:21]}  a5 {[%clk 0:00:06]} 30. Qf4 {[%clk 0:01:17]}  Qe7 {[%clk 0:00:03]} 31. Nd3 {[%clk 0:01:06]} 1-0


[Site "https://www.chess.com"]

[Event "Titled Tuesday Blitz February 21 Early 2023"]
[White "Costachi, Mihnea"]
[Black "Shapiro, Viktor"]
[WhiteFideId "1217518"]
[BlackFideId "4175700"]
[WhiteElo "2476"]
[BlackElo "2192"]
[Result "0-1"]
[Round "09"]
[TimeControl "180+2"]
[Date "2023.02.21"]
[WhiteClock "0:00:08"]
[BlackClock "0:00:20"]

1. Nc3 {[%clk 0:02:58]}  Nf6 {[%clk 0:03:00]} 2. e4 {[%clk 0:02:17]}  d5 {[%clk 0:03:00]} 3. e5 {[%clk 0:02:16]}  Nfd7 {[%clk 0:03:00]} 4. Nxd5 {[%clk 0:02:14]}  Nxe5 {[%clk 0:03:00]} 5. Nc3 {[%clk 0:02:14]}  c5 {[%clk 0:03:00]} 6. Nf3 {[%clk 0:02:13]}  Nbc6 {[%clk 0:03:01]} 7. Nxe5 {[%clk 0:02:13]}  Nxe5 {[%clk 0:03:01]} 8. d3 {[%clk 0:02:12]}  e6 {[%clk 0:02:57]} 9. Bf4 {[%clk 0:02:11]}  Ng6 {[%clk 0:02:57]} 10. Bg3 {[%clk 0:02:12]}  Bd7 {[%clk 0:02:56]} 11. Be2 {[%clk 0:02:12]}  Bc6 {[%clk 0:02:56]} 12. Bf3 {[%clk 0:02:13]}  Qd7 {[%clk 0:02:53]} 13. O-O {[%clk 0:02:13]}  Be7 {[%clk 0:02:53]} 14. Qe2 {[%clk 0:02:09]}  h5 {[%clk 0:02:47]} 15. h3 {[%clk 0:02:09]}  h4 {[%clk 0:02:46]} 16. Bh2 {[%clk 0:02:09]}  O-O {[%clk 0:02:44]} 17. Bh5 {[%clk 0:02:00]}  Bf6 {[%clk 0:02:21]} 18. Bxg6 {[%clk 0:01:59]}  fxg6 {[%clk 0:02:21]} 19. Rae1 {[%clk 0:01:57]}  Rae8 {[%clk 0:02:19]} 20. Be5 {[%clk 0:01:56]}  b6 {[%clk 0:02:15]} 21. Qg4 {[%clk 0:01:55]}  g5 {[%clk 0:02:11]} 22. f4 {[%clk 0:01:52]}  Bxe5 {[%clk 0:02:11]} 23. fxe5 {[%clk 0:01:47]}  Qd4+ {[%clk 0:02:08]} 24. Qxd4 {[%clk 0:01:47]}  cxd4 {[%clk 0:02:08]} 25. Ne2 {[%clk 0:01:48]}  Rd8 {[%clk 0:02:01]} 26. Nc1 {[%clk 0:01:47]}  Bd5 {[%clk 0:01:59]} 27. Nb3 {[%clk 0:01:45]}  Bxb3 {[%clk 0:01:56]} 28. axb3 {[%clk 0:01:45]}  Rd5 {[%clk 0:01:55]} 29. Rxf8+ {[%clk 0:01:42]}  Kxf8 {[%clk 0:01:55]} 30. Kf2 {[%clk 0:01:43]}  Rc5 {[%clk 0:01:53]} 31. Re2 {[%clk 0:01:43]}  Kf7 {[%clk 0:01:52]} 32. b4 {[%clk 0:01:38]}  Rb5 {[%clk 0:01:50]} 33. c3 {[%clk 0:01:38]}  Rd5 {[%clk 0:01:47]} 34. c4 {[%clk 0:01:37]}  Rd7 {[%clk 0:01:47]} 35. b5 {[%clk 0:01:38]}  Kg6 {[%clk 0:01:47]} 36. g4 {[%clk 0:01:30]}  hxg3+ {[%clk 0:01:46]} 37. Kxg3 {[%clk 0:01:31]}  Kf5 {[%clk 0:01:47]} 38. b4 {[%clk 0:01:29]}  Rd8 {[%clk 0:01:34]} 39. Ra2 {[%clk 0:01:27]}  Rd7 {[%clk 0:01:27]} 40. c5 {[%clk 0:01:28]}  Kxe5 {[%clk 0:01:24]} 41. c6 {[%clk 0:01:25]}  Rf7 {[%clk 0:01:20]} 42. Kg4 {[%clk 0:01:26]}  Kd6 {[%clk 0:01:15]} 43. Kxg5 {[%clk 0:01:26]}  Rf5+ {[%clk 0:01:09]} 44. Kg6 {[%clk 0:01:23]}  Rxb5 {[%clk 0:01:10]} 45. Rc2 {[%clk 0:01:16]}  Kc7 {[%clk 0:01:09]} 46. h4 {[%clk 0:01:16]}  Rxb4 {[%clk 0:01:02]} 47. Kxg7 {[%clk 0:01:16]}  Rb5 {[%clk 0:01:02]} 48. Kg6 {[%clk 0:01:15]}  Rb3 {[%clk 0:00:51]} 49. Rd2 {[%clk 0:01:00]}  Kxc6 {[%clk 0:00:37]} 50. h5 {[%clk 0:01:00]}  Rb1 {[%clk 0:00:36]} 51. Rg2 {[%clk 0:00:59]}  Rh1 {[%clk 0:00:36]} 52. h6 {[%clk 0:00:59]}  a5 {[%clk 0:00:35]} 53. h7 {[%clk 0:00:59]}  b5 {[%clk 0:00:35]} 54. Kg7 {[%clk 0:01:00]}  b4 {[%clk 0:00:35]} 55. Rg6 {[%clk 0:00:38]}  b3 {[%clk 0:00:24]} 56. Rh6 {[%clk 0:00:37]}  Rxh6 {[%clk 0:00:24]} 57. Kxh6 {[%clk 0:00:38]}  b2 {[%clk 0:00:24]} 58. h8=Q {[%clk 0:00:39]}  b1=Q {[%clk 0:00:25]} 59. Qxd4 {[%clk 0:00:37]}  Qh1+ {[%clk 0:00:24]} 60. Kg6 {[%clk 0:00:36]}  Qd5 {[%clk 0:00:25]} 61. Qc3+ {[%clk 0:00:33]}  Kb5 {[%clk 0:00:24]} 62. Qb2+ {[%clk 0:00:21]}  Kc6 {[%clk 0:00:24]} 63. Qc3+ {[%clk 0:00:21]}  Kb6 {[%clk 0:00:24]} 64. Qb2+ {[%clk 0:00:21]}  Ka6 {[%clk 0:00:23]} 65. Qc3 {[%clk 0:00:18]}  a4 {[%clk 0:00:23]} 66. Kf6 {[%clk 0:00:19]}  Qb3 {[%clk 0:00:21]} 67. Qc6+ {[%clk 0:00:18]}  Ka5 {[%clk 0:00:21]} 68. Qc5+ {[%clk 0:00:18]}  Qb5 {[%clk 0:00:20]} 69. Qa7+ {[%clk 0:00:17]}  Kb4 {[%clk 0:00:20]} 70. Qd4+ {[%clk 0:00:17]}  Kb3 {[%clk 0:00:20]} 71. Kxe6 {[%clk 0:00:17]}  a3 {[%clk 0:00:21]} 72. Qe3 {[%clk 0:00:06]}  a2 {[%clk 0:00:19]} 73. d4+ {[%clk 0:00:07]}  Kb2 {[%clk 0:00:20]} 74. Qd2+ {[%clk 0:00:07]}  Ka3 {[%clk 0:00:19]} 75. Qc1+ {[%clk 0:00:08]}  Qb2 {[%clk 0:00:19]} 76. Qc5+ {[%clk 0:00:07]}  Qb4 {[%clk 0:00:20]} 77. Qc1+ {[%clk 0:00:08]}  Kb3 {[%clk 0:00:19]} 78. d5 {[%clk 0:00:06]}  Qe4+ {[%clk 0:00:18]} 79. Kd6 {[%clk 0:00:05]}  Qc2 {[%clk 0:00:18]} 80. Qe3+ {[%clk 0:00:06]}  Qc3 {[%clk 0:00:18]} 81. Qb6+ {[%clk 0:00:06]}  Kc2 {[%clk 0:00:19]} 82. Qf2+ {[%clk 0:00:06]}  Kb3 {[%clk 0:00:18]} 83. Qb6+ {[%clk 0:00:06]}  Qb4+ {[%clk 0:00:18]} 84. Kc6 {[%clk 0:00:05]}  Qxb6+ {[%clk 0:00:17]} 85. Kxb6 {[%clk 0:00:06]}  a1=Q {[%clk 0:00:18]} 86. d6 {[%clk 0:00:07]}  Qd4+ {[%clk 0:00:19]} 87. Kc7 {[%clk 0:00:08]}  Qc5+ {[%clk 0:00:19]} 88. Kd7 {[%clk 0:00:08]}  Kc4 {[%clk 0:00:20]} 0-1


[Site "https://www.chess.com"]